[Event "*** Titled Tuesday Blitz"]
[Site "Chess.com"]
[Date "2019.08.06"]
[Round "3"]
[White "Msb2"]
[Black "LuckyTiger"]
[Result "0-1"]
[WhiteElo "2851"]
[BlackElo "2669"]
[TimeControl "180+2"]
[EndTime "13:38:54 PDT"]
[Termination "LuckyTiger won by checkmate"]

1. d4 {[%clk 0:03:01.9]} 1... Nf6 {[%clk 0:03:01]} 2. c4 {[%clk 0:02:56.9]} 2...
c5 {[%clk 0:03:02.3]} 3. d5 {[%clk 0:02:56]} 3... b5 {[%clk 0:03:03.5]} 4. cxb5
{[%clk 0:02:57.9]} 4... a6 {[%clk 0:03:04.8]} 5. bxa6 {[%clk 0:02:59.8]} 5... g6
{[%clk 0:03:06.3]} 6. Nc3 {[%clk 0:03:01.4]} 6... Bxa6 {[%clk 0:03:07.8]} 7. e4
{[%clk 0:03:02.6]} 7... Qa5 {[%clk 0:03:09.2]} 8. Bd2 {[%clk 0:03:01]} 8... Bxf1
{[%clk 0:03:09]} 9. Kxf1 {[%clk 0:03:02.9]} 9... d6 {[%clk 0:03:09.6]} 10. g3
{[%clk 0:03:03.8]} 10... Bg7 {[%clk 0:03:11.2]} 11. Kg2 {[%clk 0:03:05.2]} 11...
O-O {[%clk 0:03:12.8]} 12. Nf3 {[%clk 0:03:06.9]} 12... Na6 {[%clk 0:03:14.5]}
13. Qe2 {[%clk 0:03:02.3]} 13... Rfb8 {[%clk 0:03:12.6]} 14. b3 {[%clk
0:02:57.8]} 14... Nb4 {[%clk 0:03:10.1]} 15. a4 {[%clk 0:02:52.2]} 15... Qa6
{[%clk 0:02:53.1]} 16. Qxa6 {[%clk 0:01:51.2]} 16... Rxa6 {[%clk 0:02:55]} 17.
Rab1 {[%clk 0:01:52.9]} 17... Rab6 {[%clk 0:02:46.3]} 18. Bg5 {[%clk 0:01:38.6]}
18... Ne8 {[%clk 0:01:29.5]} 19. Nb5 {[%clk 0:01:37]} 19... R6b7 {[%clk
0:01:30.9]} 20. Nd2 {[%clk 0:01:22.3]} 20... Nc7 {[%clk 0:01:29.5]} 21. Nxc7
{[%clk 0:01:22.8]} 21... Rxc7 {[%clk 0:01:31.4]} 22. Nc4 {[%clk 0:01:14.5]}
22... Nc2 {[%clk 0:01:30.7]} 23. a5 {[%clk 0:00:38.4]} 23... Nd4 {[%clk
0:01:23]} 24. Rhd1 {[%clk 0:00:34.8]} 24... Nb5 {[%clk 0:01:06.8]} 25. Rd2
{[%clk 0:00:32.4]} 25... Nc3 {[%clk 0:01:02.2]} 26. Re1 {[%clk 0:00:25.5]} 26...
Rxb3 {[%clk 0:01:01.5]} 27. Rc2 {[%clk 0:00:16]} 27... Rb4 {[%clk 0:00:59.8]}
28. Nb6 {[%clk 0:00:12.6]} 28... Nxe4 {[%clk 0:00:58.2]} 29. Bc1 {[%clk
0:00:09.4]} 29... f5 {[%clk 0:00:46.4]} 30. Ba3 {[%clk 0:00:10.1]} 30... Rb3
{[%clk 0:00:42.4]} 31. Nc4 {[%clk 0:00:09.9]} 31... Bd4 {[%clk 0:00:26.8]} 32.
f3 {[%clk 0:00:10.7]} 32... Nf6 {[%clk 0:00:28]} 33. Bc1 {[%clk 0:00:05.3]}
33... Nxd5 {[%clk 0:00:27.5]} 34. Bd2 {[%clk 0:00:06.9]} 34... Nb4 {[%clk
0:00:26.6]} 35. Bxb4 {[%clk 0:00:06.6]} 35... Rxb4 {[%clk 0:00:28.5]} 36. Rd1
{[%clk 0:00:05.5]} 36... Ra7 {[%clk 0:00:27]} 37. Nb6 {[%clk 0:00:06.3]} 37...
Rxa5 {[%clk 0:00:23.8]} 38. Nd5 {[%clk 0:00:08]} 38... Rb7 {[%clk 0:00:21.1]}
39. Nf4 {[%clk 0:00:09.4]} 39... Be5 {[%clk 0:00:21]} 40. Nd3 {[%clk 0:00:09.7]}
40... Bf6 {[%clk 0:00:22.4]} 41. f4 {[%clk 0:00:11.2]} 41... Kf7 {[%clk
0:00:23.4]} 42. Ne1 {[%clk 0:00:12.2]} 42... Rb2 {[%clk 0:00:22.4]} 43. Rxb2
{[%clk 0:00:12.6]} 43... Bxb2 {[%clk 0:00:24.3]} 44. Nd3 {[%clk 0:00:14.5]}
44... Bd4 {[%clk 0:00:25.2]} 45. Kf3 {[%clk 0:00:15.8]} 45... Ra3 {[%clk
0:00:25.6]} 46. Ke2 {[%clk 0:00:16.7]} 46... Ra2+ {[%clk 0:00:26.3]} 47. Rd2
{[%clk 0:00:17.3]} 47... Rxd2+ {[%clk 0:00:27.3]} 48. Kxd2 {[%clk 0:00:19.2]}
48... Bg1 {[%clk 0:00:27.7]} 49. Ke2 {[%clk 0:00:19.8]} 49... Kf6 {[%clk
0:00:25.3]} 50. Kf1 {[%clk 0:00:21.1]} 50... Bd4 {[%clk 0:00:26.3]} 51. Ke2
{[%clk 0:00:22.7]} 51... e5 {[%clk 0:00:27]} 52. fxe5+ {[%clk 0:00:24]} 52...
dxe5 {[%clk 0:00:28.9]} 53. Nc1 {[%clk 0:00:22.9]} 53... c4 {[%clk 0:00:29.1]}
54. Na2 {[%clk 0:00:23.8]} 54... g5 {[%clk 0:00:27]} 55. Nb4 {[%clk 0:00:24.5]}
55... g4 {[%clk 0:00:28.2]} 56. Nc6 {[%clk 0:00:23.1]} 56... c3 {[%clk
0:00:23.4]} 57. Nb4 {[%clk 0:00:21.4]} 57... h5 {[%clk 0:00:23.5]} 58. Kd3
{[%clk 0:00:22.3]} 58... Bg1 {[%clk 0:00:23.8]} 59. Kxc3 {[%clk 0:00:20.9]}
59... Bxh2 {[%clk 0:00:23.7]} 60. Kd3 {[%clk 0:00:22.8]} 60... Bxg3 {[%clk
0:00:24.5]} 61. Ke2 {[%clk 0:00:24.7]} 61... e4 {[%clk 0:00:24.9]} 62. Nd5+
{[%clk 0:00:25.9]} 62... Kg5 {[%clk 0:00:24.6]} 63. Nc3 {[%clk 0:00:26]} 63...
Bb8 {[%clk 0:00:22.8]} 64. Kf1 {[%clk 0:00:25.9]} 64... h4 {[%clk 0:00:23.7]}
65. Kg2 {[%clk 0:00:27.4]} 65... h3+ {[%clk 0:00:24.9]} 66. Kh1 {[%clk 0:00:28]}
66... g3 {[%clk 0:00:26.1]} 67. Ne2 {[%clk 0:00:25.9]} 67... g2+ {[%clk
0:00:27]} 68. Kg1 {[%clk 0:00:26.7]} 68... Ba7+ {[%clk 0:00:28.9]} 69. Kh2
{[%clk 0:00:28]} 69... g1=Q+ {[%clk 0:00:27.1]} 70. Nxg1 {[%clk 0:00:20.3]}
70... Bxg1+ {[%clk 0:00:24.6]} 71. Kxh3 {[%clk 0:00:22.2]} 71... Ba7 {[%clk
0:00:23.6]} 72. Kg2 {[%clk 0:00:23.9]} 72... f4 {[%clk 0:00:24.7]} 73. Kf1
{[%clk 0:00:25.8]} 73... f3 {[%clk 0:00:26.1]} 74. Ke1 {[%clk 0:00:27.7]} 74...
e3 {[%clk 0:00:27.5]} 75. Kf1 {[%clk 0:00:29.6]} 75... Bb6 {[%clk 0:00:28.7]}
76. Ke1 {[%clk 0:00:31.5]} 76... Ba5+ {[%clk 0:00:29.9]} 77. Kf1 {[%clk
0:00:33.4]} 77... e2+ {[%clk 0:00:31.5]} 78. Kg1 {[%clk 0:00:35.2]} 78... e1=Q+
{[%clk 0:00:33.3]} 79. Kh2 {[%clk 0:00:37.1]} 79... Qf2+ {[%clk 0:00:34.4]} 80.
Kh3 {[%clk 0:00:38.6]} 80... Qg2# {[%clk 0:00:36.3]} 0-1

[Event "*** Titled Tuesday Blitz"]
[Site "Chess.com"]
[Date "2019.08.06"]
[Round "3"]
[White "PIwan"]
[Black "champ2005"]
[Result "0-1"]
[WhiteElo "2530"]
[BlackElo "2871"]
[TimeControl "180+2"]
[EndTime "13:39:05 PDT"]
[Termination "champ2005 won by resignation"]

1. c4 {[%clk 0:03:01.9]} 1... e5 {[%clk 0:02:59.2]} 2. Nc3 {[%clk 0:03:03.1]}
2... Nf6 {[%clk 0:02:59.8]} 3. Nf3 {[%clk 0:03:04.5]} 3... Nc6 {[%clk
0:03:00.6]} 4. e3 {[%clk 0:03:05.6]} 4... Bb4 {[%clk 0:02:58.5]} 5. Qc2 {[%clk
0:03:06.9]} 5... O-O {[%clk 0:02:58.3]} 6. Nd5 {[%clk 0:03:07.8]} 6... d6 {[%clk
0:02:51]} 7. a3 {[%clk 0:03:03.3]} 7... Ba5 {[%clk 0:02:46.7]} 8. b4 {[%clk
0:03:03.7]} 8... Bb6 {[%clk 0:02:47.8]} 9. Bd3 {[%clk 0:03:04.6]} 9... h6 {[%clk
0:02:46.4]} 10. Nxf6+ {[%clk 0:02:55.2]} 10... Qxf6 {[%clk 0:02:47]} 11. Bb2
{[%clk 0:02:57.1]} 11... Re8 {[%clk 0:02:30.8]} 12. O-O {[%clk 0:02:51.2]} 12...
a5 {[%clk 0:02:21.4]} 13. c5 {[%clk 0:02:38.8]} 13... Ba7 {[%clk 0:02:15.9]} 14.
b5 {[%clk 0:02:26.5]} 14... Nd8 {[%clk 0:02:05.1]} 15. cxd6 {[%clk 0:01:33.1]}
15... cxd6 {[%clk 0:02:05.8]} 16. Bh7+ {[%clk 0:01:32.1]} 16... Kh8 {[%clk
0:02:06.6]} 17. Be4 {[%clk 0:01:34]} 17... Bd7 {[%clk 0:01:46.2]} 18. d4 {[%clk
0:01:07.7]} 18... Bxb5 {[%clk 0:01:44.1]} 19. Rfd1 {[%clk 0:01:02.1]} 19... Nc6
{[%clk 0:01:42.4]} 20. a4 {[%clk 0:00:55.3]} 20... Ba6 {[%clk 0:01:36.4]} 21.
Bxc6 {[%clk 0:00:55.6]} 21... bxc6 {[%clk 0:01:37.5]} 22. Qxc6 {[%clk
0:00:54.6]} 22... Be2 {[%clk 0:01:35]} 23. dxe5 {[%clk 0:00:50.7]} 23... dxe5
{[%clk 0:01:35.8]} 24. Rd6 {[%clk 0:00:38.1]} 24... Bxf3 {[%clk 0:01:23.8]} 25.
Rxf6 {[%clk 0:00:20.6]} 25... Bxc6 {[%clk 0:01:24.2]} 26. Rxc6 {[%clk
0:00:22.5]} 26... f6 {[%clk 0:01:24.7]} 27. Rac1 {[%clk 0:00:21.2]} 27... Rab8
{[%clk 0:01:19.1]} 28. Ba3 {[%clk 0:00:22.6]} 28... Rb3 {[%clk 0:01:15]} 29. Bd6
{[%clk 0:00:17.5]} 29... Kh7 {[%clk 0:01:15.2]} 30. h3 {[%clk 0:00:18.4]} 30...
Bb8 {[%clk 0:01:14.6]} 31. R1c5 {[%clk 0:00:16.9]} 31... Bxd6 {[%clk 0:01:08.8]}
32. Rxd6 {[%clk 0:00:18.8]} 32... Ra8 {[%clk 0:01:06.4]} 33. Rd7 {[%clk
0:00:19.6]} 33... Rb4 {[%clk 0:01:04.9]} 34. Rcc7 {[%clk 0:00:14.8]} 34... Rg8
{[%clk 0:01:06.2]} 35. Ra7 {[%clk 0:00:11]} 35... Rxa4 {[%clk 0:01:07.5]} 36.
Rd5 {[%clk 0:00:10.9]} 36... h5 {[%clk 0:01:04.6]} 37. Rdxa5 {[%clk 0:00:10.8]}
37... Rxa5 {[%clk 0:01:05.2]} 38. Rxa5 {[%clk 0:00:12.7]} 38... Kg6 {[%clk
0:01:06.8]} 39. e4 {[%clk 0:00:13.3]} 39... h4 {[%clk 0:01:06.6]} 40. g3 {[%clk
0:00:11.8]} 40... hxg3 {[%clk 0:01:07.2]} 41. fxg3 {[%clk 0:00:13.7]} 41... Rb8
{[%clk 0:01:08.5]} 42. Kf2 {[%clk 0:00:14.1]} 42... Rb2+ {[%clk 0:01:08.5]} 43.
Kf3 {[%clk 0:00:15.6]} 43... Rb3+ {[%clk 0:01:10.4]} 44. Kf2 {[%clk 0:00:16]}
44... Kg5 {[%clk 0:01:08.2]} 45. Ra7 {[%clk 0:00:16.5]} 45... Kg6 {[%clk
0:01:08.5]} 46. Ra8 {[%clk 0:00:16.9]} 46... Rb2+ {[%clk 0:01:08.1]} 47. Kf3
{[%clk 0:00:18.2]} 47... Rh2 {[%clk 0:01:07]} 48. h4 {[%clk 0:00:14.7]} 48...
Rb2 {[%clk 0:01:08.1]} 49. Ra7 {[%clk 0:00:15.4]} 49... Rb3+ {[%clk 0:01:09]}
50. Kf2 {[%clk 0:00:16.6]} 50... Kh6 {[%clk 0:01:10]} 51. Rc7 {[%clk 0:00:16.7]}
51... Rb6 {[%clk 0:01:03]} 52. Rd7 {[%clk 0:00:17.4]} 52... Kg6 {[%clk
0:01:03.1]} 53. Rc7 {[%clk 0:00:17.9]} 53... Rb3 {[%clk 0:01:03.7]} 54. Rd7
{[%clk 0:00:18]} 54... Rb6 {[%clk 0:00:58.2]} 55. Rc7 {[%clk 0:00:19.2]} 55...
Kh6 {[%clk 0:00:59.5]} 56. Rd7 {[%clk 0:00:20]} 56... g6 {[%clk 0:01:00.9]} 57.
Rc7 {[%clk 0:00:19]} 57... f5 {[%clk 0:01:00]} 58. Re7 {[%clk 0:00:13.2]} 58...
Rb5 {[%clk 0:01:00.2]} 59. Re6 {[%clk 0:00:12.8]} 59... Kh5 {[%clk 0:00:59.1]}
60. Rf6 {[%clk 0:00:09.2]} 60... Rb2+ {[%clk 0:00:50.9]} 61. Kf3 {[%clk
0:00:09.5]} 61... Rb3+ {[%clk 0:00:52.3]} 62. Kf2 {[%clk 0:00:09.5]} 62... fxe4
{[%clk 0:00:52.6]} 63. Re6 {[%clk 0:00:10.8]} 63... Rf3+ {[%clk 0:00:53.1]} 64.
Kg2 {[%clk 0:00:10.6]} 64... Rf5 {[%clk 0:00:53.8]} 65. Kh3 {[%clk 0:00:11.6]}
65... Kh6 {[%clk 0:00:51.3]} 66. h5 {[%clk 0:00:12.7]} 66... Rxh5+ {[%clk
0:00:51.1]} 67. Kg2 {[%clk 0:00:12.1]} 67... Rf5 {[%clk 0:00:50.8]} 68. g4
{[%clk 0:00:05.7]} 68... Rf4 {[%clk 0:00:49.4]} 69. Rxe5 {[%clk 0:00:06.7]}
69... Rxg4+ {[%clk 0:00:50.2]} 70. Kh3 {[%clk 0:00:08.2]} 70... Rf4 {[%clk
0:00:50.7]} 71. Kg3 {[%clk 0:00:09.5]} 71... g5 {[%clk 0:00:52.1]} 72. Re8
{[%clk 0:00:06.2]} 72... Kg6 {[%clk 0:00:44.9]} 73. Rg8+ {[%clk 0:00:07.2]}
73... Kf5 {[%clk 0:00:44.1]} 74. Rg7 {[%clk 0:00:07.8]} 74... e3 {[%clk
0:00:42.1]} 75. Rf7+ {[%clk 0:00:07.6]} 75... Ke4 {[%clk 0:00:42.5]} 76. Re7+
{[%clk 0:00:08.7]} 76... Kd3 {[%clk 0:00:43.5]} 0-1

[Event "*** Titled Tuesday Blitz"]
[Site "Chess.com"]
[Date "2019.08.06"]
[Round "3"]
[White "AliKa2810"]
[Black "Agent-JL"]
[Result "1-0"]
[WhiteElo "2525"]
[BlackElo "2347"]
[TimeControl "180+2"]
[EndTime "13:39:08 PDT"]
[Termination "AliKa2810 won by resignation"]

1. Nf3 {[%clk 0:03:00.2]} 1... Nf6 {[%clk 0:03:01]} 2. g3 {[%clk 0:03:00.9]}
2... b6 {[%clk 0:03:02.2]} 3. Bg2 {[%clk 0:03:01.4]} 3... c5 {[%clk 0:03:03.6]}
4. O-O {[%clk 0:03:02.2]} 4... Bb7 {[%clk 0:03:04.5]} 5. c4 {[%clk 0:03:03.8]}
5... g6 {[%clk 0:03:05.7]} 6. d4 {[%clk 0:03:04.7]} 6... cxd4 {[%clk 0:03:06.7]}
7. Qxd4 {[%clk 0:03:05.2]} 7... Bg7 {[%clk 0:03:07.3]} 8. Nc3 {[%clk 0:03:05.4]}
8... O-O {[%clk 0:03:08.2]} 9. Qh4 {[%clk 0:03:04.5]} 9... Nc6 {[%clk
0:03:01.3]} 10. Bh6 {[%clk 0:03:04.9]} 10... Nh5 {[%clk 0:02:27.5]} 11. Bxg7
{[%clk 0:03:04]} 11... Kxg7 {[%clk 0:02:23.3]} 12. Rad1 {[%clk 0:03:00.5]} 12...
d6 {[%clk 0:02:15.1]} 13. Nd4 {[%clk 0:02:38.4]} 13... Rc8 {[%clk 0:01:55]} 14.
b3 {[%clk 0:02:37]} 14... e6 {[%clk 0:01:50]} 15. Qxd8 {[%clk 0:02:33.6]} 15...
Rfxd8 {[%clk 0:01:51.9]} 16. Ndb5 {[%clk 0:02:33.1]} 16... d5 {[%clk 0:01:25.2]}
17. cxd5 {[%clk 0:02:32.9]} 17... Na5 {[%clk 0:01:21.8]} 18. dxe6 {[%clk
0:02:20.1]} 18... Bxg2 {[%clk 0:01:20.9]} 19. Kxg2 {[%clk 0:02:21.2]} 19... Rxd1
{[%clk 0:01:14.2]} 20. Rxd1 {[%clk 0:02:13.1]} 20... a6 {[%clk 0:00:58.8]} 21.
e7 {[%clk 0:02:13.1]} 21... Re8 {[%clk 0:00:56.5]} 22. Nd6 {[%clk 0:02:05.8]}
22... Rxe7 {[%clk 0:00:53.8]} 23. e3 {[%clk 0:02:06.1]} 23... Nf6 {[%clk
0:00:49.5]} 24. Nd5 {[%clk 0:02:01.8]} 24... Nxd5 {[%clk 0:00:43.4]} 25. Rxd5
{[%clk 0:02:03.2]} 25... Re6 {[%clk 0:00:45.3]} 26. e4 {[%clk 0:01:46.6]} 26...
Nc6 {[%clk 0:00:33.3]} 27. Nc8 {[%clk 0:01:26.4]} 27... Kf6 {[%clk 0:00:18]} 28.
Nxb6 {[%clk 0:01:22.2]} 28... Nb4 {[%clk 0:00:16.5]} 29. Nd7+ {[%clk 0:01:22.7]}
29... Ke7 {[%clk 0:00:17.5]} 30. Nc5 {[%clk 0:01:16.7]} 30... Rc6 {[%clk
0:00:08.4]} 31. Rd4 {[%clk 0:01:17.5]} 31... Nxa2 {[%clk 0:00:08.4]} 32. Nd3
{[%clk 0:01:01.7]} 32... Nc3 {[%clk 0:00:02.7]} 33. Ne5 {[%clk 0:01:02.5]} 33...
Re6 {[%clk 0:00:02.4]} 34. Kf3 {[%clk 0:00:52.7]} 34... Rxe5 {[%clk 0:00:02.8]}
35. Rc4 {[%clk 0:00:51]} 35... Nb5 {[%clk 0:00:03.8]} 36. Kf4 {[%clk 0:00:51.7]}
36... Re6 {[%clk 0:00:04.9]} 37. e5 {[%clk 0:00:52.8]} 37... f6 {[%clk
0:00:05.9]} 38. exf6+ {[%clk 0:00:50.1]} 38... Rxf6+ {[%clk 0:00:07.8]} 39. Ke3
{[%clk 0:00:51.4]} 39... Re6+ {[%clk 0:00:09]} 40. Kf4 {[%clk 0:00:52]} 40...
Nd6 {[%clk 0:00:10.2]} 41. Rc7+ {[%clk 0:00:52.4]} 41... Kf6 {[%clk 0:00:11.7]}
42. Rxh7 {[%clk 0:00:53.4]} 42... Re4+ {[%clk 0:00:13.2]} 43. Kf3 {[%clk
0:00:53.6]} 43... Rb4 {[%clk 0:00:14.9]} 44. Rd7 {[%clk 0:00:54.8]} 44... Rxb3+
{[%clk 0:00:16]} 45. Kg4 {[%clk 0:00:54.2]} 45... Nf5 {[%clk 0:00:16.7]} 46. f4
{[%clk 0:00:49.2]} 46... Rb4 {[%clk 0:00:15.9]} 47. Ra7 {[%clk 0:00:48.6]} 47...
Rb6 {[%clk 0:00:16.1]} 48. h4 {[%clk 0:00:48.3]} 48... Ne3+ {[%clk 0:00:16.3]}
49. Kf3 {[%clk 0:00:49.2]} 49... Nc4 {[%clk 0:00:17.4]} 50. g4 {[%clk
0:00:45.2]} 50... Nd6 {[%clk 0:00:16.2]} 51. h5 {[%clk 0:00:45.4]} 51... gxh5
{[%clk 0:00:17.3]} 52. gxh5 {[%clk 0:00:45.9]} 52... Nf5 {[%clk 0:00:18.9]} 53.
Kg4 {[%clk 0:00:46.5]} 53... Rb3 {[%clk 0:00:19.3]} 54. Rxa6+ {[%clk 0:00:47.2]}
54... Kg7 {[%clk 0:00:10.3]} 55. Kxf5 {[%clk 0:00:48.3]} 55... Rb5+ {[%clk
0:00:11.7]} 56. Kg4 {[%clk 0:00:49.3]} 56... Rd5 {[%clk 0:00:13.6]} 57. Ra7+
{[%clk 0:00:48.6]} 57... Kh6 {[%clk 0:00:14.6]} 58. Ra6+ {[%clk 0:00:49]} 58...
Kg7 {[%clk 0:00:16]} 59. Rg6+ {[%clk 0:00:50.4]} 59... Kh7 {[%clk 0:00:17.2]}
60. f5 {[%clk 0:00:50.2]} 60... Rd7 {[%clk 0:00:16.4]} 61. Ra6 {[%clk
0:00:50.5]} 61... Rf7 {[%clk 0:00:16]} 62. Kg5 {[%clk 0:00:51.3]} 62... Rg7+
{[%clk 0:00:16.8]} 63. Rg6 {[%clk 0:00:51.4]} 63... Rf7 {[%clk 0:00:18.1]} 64.
h6 {[%clk 0:00:52]} 64... Kh8 {[%clk 0:00:19]} 65. Ra6 {[%clk 0:00:50]} 65...
Kh7 {[%clk 0:00:19.6]} 66. Rg6 {[%clk 0:00:50]} 66... Kh8 {[%clk 0:00:19.5]} 67.
Rf6 {[%clk 0:00:50.6]} 67... Re7 {[%clk 0:00:10.8]} 68. Kg6 {[%clk 0:00:50.9]}
68... Re8 {[%clk 0:00:10.6]} 69. Rf7 {[%clk 0:00:51.1]} 69... Rg8+ {[%clk
0:00:11.7]} 70. Rg7 {[%clk 0:00:50.1]} 70... Rf8 {[%clk 0:00:11.1]} 71. Ra7
{[%clk 0:00:45.5]} 71... Rg8+ {[%clk 0:00:10.8]} 72. Kf6 {[%clk 0:00:46.5]}
72... Rf8+ {[%clk 0:00:11.5]} 73. Rf7 {[%clk 0:00:47.5]} 73... Rg8 {[%clk
0:00:11.1]} 74. Ke7 {[%clk 0:00:47.3]} 74... Rg1 {[%clk 0:00:07]} 75. f6 {[%clk
0:00:45.2]} 75... Re1+ {[%clk 0:00:07]} 76. Kf8 {[%clk 0:00:46.1]} 76... Re6
{[%clk 0:00:07.1]} 77. h7 {[%clk 0:00:43.7]} 77... Re5 {[%clk 0:00:04.6]} 78.
Re7 {[%clk 0:00:41.3]} 78... Rf5 {[%clk 0:00:04.7]} 79. Kf7 {[%clk 0:00:40.2]}
79... Kxh7 {[%clk 0:00:03.8]} 80. Ke6+ {[%clk 0:00:41]} 80... Kg6 {[%clk
0:00:04.6]} 81. Rg7+ {[%clk 0:00:42.2]} 1-0

[Event "*** Titled Tuesday Blitz"]
[Site "Chess.com"]
[Date "2019.08.06"]
[Round "3"]
[White "GrandGlacier"]
[Black "Pakarma"]
[Result "1-0"]
[WhiteElo "2419"]
[BlackElo "2396"]
[TimeControl "180+2"]
[EndTime "13:39:10 PDT"]
[Termination "GrandGlacier won by resignation"]

1. b3 {[%clk 0:03:01.9]} 1... c5 {[%clk 0:02:59.2]} 2. Bb2 {[%clk 0:03:02.5]}
2... Nc6 {[%clk 0:03:01.1]} 3. f4 {[%clk 0:03:02.8]} 3... d5 {[%clk 0:03:03]} 4.
Nf3 {[%clk 0:03:02.7]} 4... Bg4 {[%clk 0:03:03.8]} 5. e3 {[%clk 0:03:03.5]} 5...
f6 {[%clk 0:03:02]} 6. Bb5 {[%clk 0:03:03.4]} 6... Qb6 {[%clk 0:02:51.3]} 7. a4
{[%clk 0:02:58.2]} 7... a6 {[%clk 0:02:50.6]} 8. Bxc6+ {[%clk 0:02:53.7]} 8...
Qxc6 {[%clk 0:02:52.3]} 9. O-O {[%clk 0:02:45.7]} 9... Nh6 {[%clk 0:02:45.4]}
10. h3 {[%clk 0:02:43.3]} 10... Bh5 {[%clk 0:02:38.7]} 11. d3 {[%clk 0:02:31.3]}
11... O-O-O {[%clk 0:02:21.4]} 12. Qe1 {[%clk 0:01:33.5]} 12... e6 {[%clk
0:02:13.4]} 13. Nbd2 {[%clk 0:01:10.9]} 13... Bd6 {[%clk 0:02:10.8]} 14. c4
{[%clk 0:01:09.8]} 14... Rhg8 {[%clk 0:01:55.7]} 15. cxd5 {[%clk 0:01:05.3]}
15... exd5 {[%clk 0:01:56.4]} 16. b4 {[%clk 0:01:06.2]} 16... Kb8 {[%clk
0:01:53.6]} 17. bxc5 {[%clk 0:01:02.8]} 17... Bxc5 {[%clk 0:01:50.2]} 18. Nb3
{[%clk 0:01:03.6]} 18... Ba7 {[%clk 0:01:43.9]} 19. Bd4 {[%clk 0:01:02.9]} 19...
Bxf3 {[%clk 0:01:42.5]} 20. Rxf3 {[%clk 0:00:59.6]} 20... Nf5 {[%clk 0:01:42.7]}
21. Bxa7+ {[%clk 0:00:59.3]} 21... Kxa7 {[%clk 0:01:42.9]} 22. Qb4 {[%clk
0:01:00.1]} 22... Qb6 {[%clk 0:01:28.7]} 23. Qxb6+ {[%clk 0:00:58.1]} 23... Kxb6
{[%clk 0:01:30.6]} 24. a5+ {[%clk 0:00:58.9]} 24... Ka7 {[%clk 0:01:26.4]} 25.
Nc5 {[%clk 0:00:58.2]} 25... d4 {[%clk 0:01:19.2]} 26. Rb1 {[%clk 0:00:56.4]}
26... Nd6 {[%clk 0:01:15.6]} 27. e4 {[%clk 0:00:53.6]} 27... Rc8 {[%clk
0:01:15]} 28. Ne6 {[%clk 0:00:52.4]} 28... Nb5 {[%clk 0:01:10.6]} 29. Rb4 {[%clk
0:00:52.8]} 29... Rc1+ {[%clk 0:01:07.1]} 30. Rf1 {[%clk 0:00:53.5]} 30... Rc3
{[%clk 0:01:01.1]} 31. Nxd4 {[%clk 0:00:51.6]} 31... Rxd3 {[%clk 0:00:42.3]} 32.
Nxb5+ {[%clk 0:00:52]} 32... axb5 {[%clk 0:00:44.2]} 33. Rxb5 {[%clk 0:00:53.4]}
33... Rc8 {[%clk 0:00:41.8]} 34. Rfb1 {[%clk 0:00:49.7]} 34... Rc7 {[%clk
0:00:42.6]} 35. e5 {[%clk 0:00:48.9]} 35... fxe5 {[%clk 0:00:43]} 36. Rxe5
{[%clk 0:00:48.4]} 36... Rd2 {[%clk 0:00:42.7]} 37. Reb5 {[%clk 0:00:45.7]}
37... g6 {[%clk 0:00:41.3]} 38. R1b2 {[%clk 0:00:45.8]} 38... Rd1+ {[%clk
0:00:40.5]} 39. Kh2 {[%clk 0:00:46.1]} 39... Rd4 {[%clk 0:00:41]} 40. Kg3 {[%clk
0:00:45.3]} 40... Ra4 {[%clk 0:00:33.2]} 41. Kg4 {[%clk 0:00:42.8]} 41... Rf7
{[%clk 0:00:34.1]} 42. g3 {[%clk 0:00:43.3]} 42... Ra3 {[%clk 0:00:34.7]} 43.
R2b3 {[%clk 0:00:39.1]} 43... Ra4 {[%clk 0:00:28.1]} 44. h4 {[%clk 0:00:39.9]}
44... Ka6 {[%clk 0:00:22.8]} 45. Rb6+ {[%clk 0:00:39.1]} 45... Ka7 {[%clk
0:00:23.7]} 46. R6b5 {[%clk 0:00:35.8]} 46... Ka6 {[%clk 0:00:24.7]} 47. Rb6+
{[%clk 0:00:35.6]} 47... Ka7 {[%clk 0:00:25.7]} 48. R3b5 {[%clk 0:00:36.7]}
48... Ra3 {[%clk 0:00:25.2]} 49. h5 {[%clk 0:00:31.8]} 49... gxh5+ {[%clk
0:00:25.3]} 50. Rxh5 {[%clk 0:00:32.3]} 50... Rg7+ {[%clk 0:00:26.5]} 51. Rg5
{[%clk 0:00:31.1]} 51... Re7 {[%clk 0:00:20.6]} 52. Rh6 {[%clk 0:00:28.5]} 52...
Ree3 {[%clk 0:00:13.3]} 53. Kf5 {[%clk 0:00:26]} 53... Rxa5+ {[%clk 0:00:13.8]}
54. Kg4 {[%clk 0:00:26.1]} 54... Raa3 {[%clk 0:00:13.8]} 55. Rh3 {[%clk
0:00:23.1]} 55... Re7 {[%clk 0:00:13.4]} 56. f5 {[%clk 0:00:21.7]} 56... Ra4+
{[%clk 0:00:13.6]} 57. Kh5 {[%clk 0:00:22.8]} 57... b5 {[%clk 0:00:14.4]} 58. f6
{[%clk 0:00:20.7]} 58... Re6 {[%clk 0:00:11.1]} 59. Rf5 {[%clk 0:00:19.1]} 59...
Re8 {[%clk 0:00:06.6]} 60. f7 {[%clk 0:00:19.5]} 60... Rf8 {[%clk 0:00:07.5]}
61. g4 {[%clk 0:00:20.5]} 61... Ra6 {[%clk 0:00:08.1]} 62. Re3 {[%clk
0:00:20.5]} 62... Rb6 {[%clk 0:00:05.1]} 63. Re8 {[%clk 0:00:20.9]} 63... Rb8
{[%clk 0:00:04.2]} 64. Rxb8 {[%clk 0:00:20.9]} 64... Kxb8 {[%clk 0:00:06.1]} 65.
Kh6 {[%clk 0:00:21.2]} 65... Kc7 {[%clk 0:00:06.4]} 66. Kg7 {[%clk 0:00:22.3]}
66... Rxf7+ {[%clk 0:00:07]} 67. Kxf7 {[%clk 0:00:23.1]} 67... Kc6 {[%clk
0:00:08.9]} 68. Kg7 {[%clk 0:00:23.8]} 68... b4 {[%clk 0:00:10.8]} 69. Kxh7
{[%clk 0:00:24.9]} 69... b3 {[%clk 0:00:12.7]} 70. Rf3 {[%clk 0:00:26]} 70...
Kc5 {[%clk 0:00:14.6]} 71. Rxb3 {[%clk 0:00:26.6]} 1-0